Workbook

Sheet Для власних потреб
D1: "ЗАТВЕРДЖЕНО" рішенням Продуктово-тарифного комітету (протокол №73 від 29.10.2025 року) Вступають в дію з 05.11.2025 року
A2: Тарифи на банківськи послуги Акціонерного банку "Південний"
A3: 2 | B3: ФІЗИЧНІ ОСОБИ
A4: 2.1 | B4: ВЕДЕННЯ ПОТОЧНИХ РАХУНКІВ ФІЗИЧНИХ ОСІБ У НАЦІОНАЛЬНІЙ, ІНОЗЕМНИХ ВАЛЮТАХ ТА У БАНКІВСЬКИХ МЕТАЛАХ
A5: 2.1.1 | B5: Тарифний план "Для власних потреб"
B6: Операція/послуга | C6: Гривня | D6: Долари США, Євро | E6: Англійський фунт стерлінгів, Швейцарський франк, Польський злотий
A7: 2.1.1.1 | B7: Обслуговування рахунків:
A8: 2.1.1.1.1 | B8: Відкриття поточного рахунку | C8: не тарифікується (рекомендовано відкриття для цільових надходжень: дивіденди, заробітна плата, купівля-продаж, купівля-продаж корпоративних прав, поворотня/безповоротня фінансова допомога, дарування, спадщина, страхові виплати та ін. | D8: не тарифікується (рекомендовано відкриття для цільових надходжень: дивіденди, заробітна плата, купівля-продаж, купівля-продаж корпоративних прав, поворотня/безповоротня фінансова допомога, дарування, спадщина, страхові виплати та ін. | E8: відкриття нових рахунків з 01.02.2023р.- не передбачено
A9: 2.1.1.1.2 | B9: Закриття поточного рахунку | C9: Не тарифікується | D9: Не тарифікується | E9: Не тарифікується
A10: 2.1.1.1.3 | B10: Плата за обслуговування неактивного рахунку («Неактивний рахунок» - рахунок, по якому не було оборотів на протязі останніх 6 місяців, за виключенням внутрішньобанківських операцій по нарахуванню % та списанню комісії) | C10: 50 грн на місяць, але не більше залишку на рахунку
A11: 2.1.1.1.4 | B11: Річна відсоткова ставка, що нараховується щомісяця на щоденні фактичні залишки грошових коштів на рахунку (згідно рішення КУАП) | C11: 0 | D11: 0 | E11: 0
A12: 2.1.1.2 | B12: Готівкове поповнення рахунків:
A13: 2.1.1.2.1 | B13: власником рахунку (у т.ч. за довіреністю) | C13: Не тарифікується | D13: Не тарифікується | E13: Не передбачено
A14: 2.1.1.2.2 | B14: іншою особою | C14: 0,5% від суми min 25 грн., max 1000 грн. | D14: Не тарифікується | E14: Не передбачено
A15: 2.1.1.3 | B15: Безготівкове зарахування коштів на рахунки | C15: Не тарифікується | D15: Не тарифікується | E15: Не тарифікується
A16: 2.1.1.4 | B16: Видача готівкових коштів з рахунків: | C16: 1% від суми | D16: 1% від суми (у гривні за курсом НБУ) | E16: Не передбачено
A17: 2.1.1.5 | B17: Додаткова плата за термінове отримання готівкових коштів у відділеннях Акціонерного банку «Південний» (без оформлення заявки)
A18: 2.1.1.5.1 | B18: до 100 000,00 грн. (або еквівалент в іноземній валюті за курсом НБУ) у день | C18: Не тарифікується | D18: Не тарифікується | E18: Не передбачено
A19: 2.1.1.5.2 | B19: від 100 000,01 грн. до 7 500 000,00 грн. (або еквівалент в іноземній валюті за курсом НБУ) у день | C19: 1,8% від суми | D19: 1,8% від суми (у гривні за курсом НБУ) | E19: Не передбачено
A20: 2.1.1.5.3 | B20: від 7 500 000,01 грн. (або еквівалент в іноземній валюті за курсом НБУ) у день | C20: 1% від суми | D20: 1% від суми (у гривні за курсом НБУ) | E20: Не передбачено
A21: 2.1.1.6 | B21: Безготівкові перекази з рахунків:
A22: 2.1.1.6.1 | B22: у системі дистанційного обслуговування "ПІВДЕННИЙ MYBANK" | C22: згідно з Додатком №3 до Тарифів
A23: 2.1.1.6.2 | B23: у Мобільному застосунку "Pivdenny Online" | C23: згідно з Додатком №6 до Тарифів
A24: 2.1.1.6.3 | B24: через сервіс "Open Banking" | C24: згідно з Додатком №7 до Тарифів
A25: 2.1.1.6.4 | B25: у відділені Банку:
A26: 2.1.1.6.4.1 | B26: в межах Банку
A27: 2.1.1.6.4.1.1 | B27: на власні рахунки (за виключенням рахунків, відкритих як фізичній особі-підприємцю) | C27: Не тарифікується | D27: Не тарифікується | E27: Не тарифікується
A28: 2.1.1.6.4.1.2 | B28: на рахунки інших отримувачів | C28: 0,5% від суми переказу min 25 грн., max 1500 грн. | D28: 0,5% від суми переказу min 5 USD/EUR, max 50 USD/EUR (у грн. за курсом НБУ) | E28: 0,5% від суми переказу min еквівалент 5 USD, max еквівалент 50 USD (у грн. за курсом НБУ)
A29: 2.1.1.6.4.1.3 | B29: на внутрішньобанківські рахунки | C29: Не тарифікується | D29: Не тарифікується | E29: Не тарифікується
A30: 2.1.1.6.4.1.4 | B30: на рахунки забудовників для інвестування в будівництво на первинному ринку | C30: 0,5% від суми переказу min 25 грн., max 750 грн. | D30: х | E30: х
A31: 2.1.1.6.4.2 | B31: В інші банки за межами України | C31: Не передбачено | D31: 0,75% від суми переказу min 30 USD/EUR max 500 USD/EUR (у грн. за курсом НБУ) | E31: 0,75% від суми переказу min еквівалент 30 USD max еквівалент 500 USD (у грн. за курсом НБУ)
A32: 2.1.1.6.4.3 | B32: В інші банки по території України | C32: 1% від суми, min 25,00 грн. | D32: 1% від суми переказу min 30 USD/EUR (у грн. за курсом НБУ) | E32: 1% від суми переказу min еквівалент 30 USD (у грн. за курсом НБУ)
A33: 2.1.1.6.4.3.1 | B33: на рахунки забудовників для інвестування в будівництво на первинному ринку | C33: 0,5% від суми переказу min 25 грн., max 1000 грн. | D33: х | E33: х
A34: 2.1.1.6.4.4 | B34: на рахунки клієнтів АТ "Регіональний інвестиційний банк" | C34: Не передбачено | D34: 25 USD/EUR (у грн. за курсом НБУ) | E34: 25 USD (еквівалент) + 0,5% від суми переказу ( у гривнях за курсом НБУ)
A35: 2.1.1.6.4.5 | B35: з метою оплати навчання, лікування | C35: 0,5% від суми переказу min 25 грн. | D35: 0,5% від суми переказу, min 25 USD/EUR max 500 USD/EUR (у грн. за курсом НБУ) | E35: 0,5% від суми переказу, min еквівалент 25 USD max еквівалент 500 USD (у грн. за курсом НБУ)
A36: 2.1.1.6.4.6 | B36: За системами грошових переказі, якими це передбачено | C36: Згідно тарифів систем грошових переказів | D36: Згідно тарифів систем грошових переказів | E36: Не передбачено
A37: 2.1.1.6.4.7 | B37: на рахунки Міністерства оборони України, Державної прикордонної служби України, їх підрозділів та частин з метою благодійної допомоги з організації матеріально-технічного та медичного забеспечення Збройних сил України | C37: Не тарифікується | D37: Не передбачено | E37: Не передбачено
A38: 2.1.1.6.5 | B38: в рамках послуги "Регулярний платіж":
A39: 2.1.1.6.5.1 | B39: в межах Банку
A40: 2.1.1.6.5.1.1 | B40: на власні рахунки (за виключенням рахунків, відкритих як фізичній особі-підприємцю) | C40: Не тарифікується | D40: Не тарифікується | E40: Не тарифікується
A41: 2.1.1.6.5.1.2 | B41: на рахунки інших отримувачів | C41: 0,25% від суми min 5 грн., max 1000 грн. | D41: Не передбачено | E41: Не передбачено
A42: 2.1.1.6.5.2 | B42: за межі Банку | C42: 0,50% від суми min 10 грн. | D42: Не передбачено | E42: Не передбачено
A43: 2.1.1.7 | B43: Безготівкове списання коштів Банком з рахунку для подальшої конвертації/купівлі-продажу на валютному ринку України (в т.ч. за операцією "Обмін валют" в СДО "ПІВДЕННИЙ MYBANK" і Мобільному застосунку "Pivdenny Online") | C43: Не тарифікується | D43: Не тарифікується | E43: Не тарифікується
A44: 2.1.1.8 | B44: Повернення помилково зарахованих коштів (не з вини Банку), які надійшли на рахунок у безготівковій формі, за заявою власника рухунку або довіреної особи | C44: Не тарифікується | D44: 25 USD (у гривні за курсом НБУ) | E44: 25 USD (у гривні за курсом НБУ)

Sheet Для Виплат
E1: "ЗАТВЕРДЖЕНО" рішенням Продуктово-тарифного комітету (протокол №73 від 29.10.2025 року) Вступають в дію з 05.11.2025 року
A2: Тарифи на банківськи послуги Акціонерного банку "Південний"
A3: 2 | B3: ФІЗИЧНІ ОСОБИ
A4: 2.1 | B4: ВЕДЕННЯ ПОТОЧНИХ РАХУНКІВ ФІЗИЧНИХ ОСІБ У НАЦІОНАЛЬНІЙ, ІНОЗЕМНИХ ВАЛЮТАХ ТА У БАНКІВСЬКИХ МЕТАЛАХ
A5: 2.1.2 | B5: Тарифний план "Для виплат" (у т.ч. для рахунків за тарифними планами "Пенсійний/соціальний", "Для моряків", "Для купівлі-продажу ОВДП", "Туристичний", "Нотаріальний")
B6: Операція/послуга | C6: Гривня | D6: Долари США, Євро | E6: Англійський фунт стерлінгів, Швейцарський франк, Польський злотий
A7: 2.1.2.1 | B7: Обслуговування рахунків:
A8: 2.1.2.1.1 | B8: Відкриття поточного рахунку | C8: не тарифікується (рекомендовано відкриття для цільових надходжень: дивіденди, заробітна плата, купівля-продаж, купівля-продаж корпоративних прав, поворотня/безповоротня фінансова допомога, дарування, спадщина, страхові виплати та ін. | D8: не тарифікується (рекомендовано відкриття для цільових надходжень: дивіденди, заробітна плата, купівля-продаж, купівля-продаж корпоративних прав, поворотня/безповоротня фінансова допомога, дарування, спадщина, страхові виплати, та ін. | E8: не тарифікується
A9: 2.1.2.1.2 | B9: Закриття поточного рахунку | C9: Не тарифікується
A10: 2.1.2.1.3 | B10: Плата за обслуговування неактивного рахунку | C10: Не тарифікується
B11: «Неактивний рахунок» - рахунок, по якому не було оборотів на протязі останніх 6 місяців, за виключенням внутрішньобанківських операцій по нарахуванню % та списанню комісії.
A12: 2.1.2.1.4 | B12: Річна відсоткова ставка, що нараховується щомісяця на щоденні фактичні залишки грошових коштів на рахунку (згідно рішення КУАП) | C12: 0 | D12: 0 | E12: 0
A13: 2.1.2.2 | B13: Готівкове поповнення рахунків:
A14: 2.1.2.2.1 | B14: власником рахунку (у т.ч. за нотаріальною довіреністю)/іншою особою | C14: 1 % від суми | D14: 1 % від суми (у гривні за курсом НБУ) | E14: Не передбачено
A15: 2.1.2.2.2 | B15: іншою особою за договором купівлі-продажу об’єкту нерухомості та ін.
A16: 2.1.2.2.2.1 | B16: до 1 500 000.00 грн. | C16: 0,5% від суми min 25 грн., maх 1500 грн. | D16: Не передбачено | E16: Не передбачено
A17: 2.1.2.2.2.2 | B17: від 1 500 000,01 грн | C17: 0,5% від суми min 25 грн., maх 2500 грн. | D17: Не передбачено | E17: Не передбачено
A18: 2.1.2.3 | B18: Безготівкове зарахування коштів на рахунки:
A19: 2.1.2.3.1 | B19: зарахування коштів, що надійшли від органів ПФ, УСЗН та ДСЗ (державна служба зайнятості), ФСС (фонд соціального страхування) | C19: Не тарифікується | D19: Не передбачено | E19: Не передбачено
A20: 2.1.2.3.2 | B20: за системами грошових переказів, якими це передбачено (за виключенням переказів SWIFT) | C20: Не тарифікується | D20: Не тарифікується | E20: Не тарифікується
A21: 2.1.2.3.3 | B21: наданих Банком як кредит відповідно до договору | C21: Не тарифікується | D21: Не передбачено | E21: Не передбачено
A22: 2.1.2.3.4 | B22: за Депозитними договорами | C22: Не тарифікується | D22: Не тарифікується | E22: Не передбачено
A23: 2.1.2.3.5 | B23: за Договорами з компанією-судовласником | C23: згідно умов договору | D23: згідно умов договору | E23: згідно умов договору
A24: 2.1.2.3.6 | B24: Безготівкове зарахування коштів, які надійшли на рахунок після конвертації/купівлі-продажу на валютному ринку України (в т.ч. за операцією "Обмін валют" в СДО "ПІВДЕННИЙ MYBANK") | C24: Не тарифікується | D24: Не тарифікується | E24: Не тарифікується
A25: 2.1.2.3.7 | B25: Безготівкове зарахування кредитних коштів, які надійшли на рахунок від Партнерів Банку за укладеними договорами | C25: Не тарифікується | D25: Не передбачено | E25: Не передбачено
A26: 2.1.2.3.8 | B26: Безготівкове зарахування коштів, які надійшли на рахунок після погашення / продажу ОВДП | C26: Не тарифікується | D26: Не тарифікується | E26: Не передбачено
A27: 2.1.2.3.9 | B27: інші надходження (в т.ч. перекази SWIFT) (зарахування з власних рахунків в межах банку для валюти Гривня, Дол США, Євро - не тарифікується ) | C27: 1 % від суми | D27: 1 % від суми (у гривні за курсом НБУ) | E27: 1 % від суми (у гривні за курсом НБУ)
A28: 2.1.2.4 | B28: Видача готівкових коштів з рахунків | C28: Не тарифікується (по рахункам зі спеціальним режимом користування - не передбачено) | D28: Не тарифікується | E28: Не передбачено
A29: 2.1.2.5 | B29: Додаткова плата за термінове отримання готівкових коштів у відділеннях Акціонерного банку «Південний» (без оформлення заявки)
A30: 2.1.2.5.1 | B30: до 100 000,00 грн. (або еквівалент в іноземній валюті за курсом НБУ) у день | C30: Не тарифікується | D30: Не тарифікується | E30: Не передбачено
A31: 2.1.2.5.2 | B31: від 100 000,01 грн. до 7 500 000,00 грн. (або еквівалент в іноземній валюті за курсом НБУ) у день | C31: 1,8% від суми | D31: 1,8% від суми (у гривні за курсом НБУ) | E31: Не передбачено
A32: 2.1.2.5.3 | B32: від 7 500 000,01 грн. (або еквівалент в іноземній валюті за курсом НБУ) у день | C32: 1 % від суми | D32: 1 % від суми (у гривні за курсом НБУ) | E32: Не передбачено
A33: 2.1.2.6 | B33: Безготівкові перекази з рахунків:
A34: 2.1.2.6.1 | B34: у системі дистанційного обслуговування "ПІВДЕННИЙ MYBANK" | C34: згідно з Додатком №3 до Тарифів
A35: 2.1.2.6.2 | B35: у Мобільному застосунку "Pivdenny Online" | C35: згідно з Додатком №6 до Тарифів
A36: 2.1.2.6.3 | B36: через сервіс "Open Banking" | C36: згідно з Додатком №7 до Тарифів
A37: 2.1.2.6.4 | B37: у відділені Банку:
A38: 2.1.2.6.4.1 | B38: в межах Банку
A39: 2.1.2.6.4.1.1 | B39: на власні рахунки (за виключенням рахунків, відкритих як фізичній особі-підприємцю) | C39: Не тарифікується | D39: Не тарифікується | E39: Не тарифікується
A40: 2.1.2.6.4.1.2 | B40: на рахунки інших отримувачів | C40: 0,5% min 25 грн., max 1500 грн. | D40: 0,5% від суми переказу min 5 USD/EUR, max 50 USD/EUR (у грн. за курсом НБУ) | E40: 0,5% від суми переказу min еквівалент 5 USD, max еквівалент 50 USD (у грн. за курсом НБУ)
A41: 2.1.2.6.4.1.3 | B41: на внутрішньобанківські рахунки | C41: Не тарифікується | D41: Не тарифікується | E41: Не тарифікується
A42: 2.1.2.6.4.1.4 | B42: на рахунки забудовників для інвестування в будівництво на первинному ринку | C42: 0,5% від суми переказу min 25 грн., max 750 грн. | D42: х | E42: х
A43: 2.1.2.6.4.2 | B43: В інші банки за межами України | C43: Не передбачено | D43: 0,75% від суми переказу min 30 USD/EUR max 500 USD/EUR (у грн. за курсом НБУ) | E43: 0,75% від суми переказу min еквівалент 30 USD max еквівалент 500 USD (у грн. за курсом НБУ)
A44: 2.1.2.6.4.3 | B44: В інші банки по території України (по рахункам зі спеціальним режимом користування для валюти Гривня - не тарифікується)
A45: 2.1.2.6.4.3.1 | B45: до 3 000 000,00 грн. (або еквівалент в іноземній валюті за курсом НБУ) | C45: 1 % від суми, min 25,00 грн. | D45: 1 % від суми переказу min 30 USD/EUR (у грн. за курсом НБУ) | E45: 1 % від суми переказу min еквівалент 30 USD (у грн. за курсом НБУ)
A46: 2.1.2.6.4.3.2 | B46: від 3 000 000,01 грн. (або еквівалент в іноземній валюті за курсом НБУ) | C46: Не тарифікується
A47: 2.1.2.6.4.3.3 | B47: на рахунки забудовників для інвестування в будівництво на первинному ринку | C47: 0,5% від суми переказу min 25 грн., max 1000 грн. | D47: х | E47: х
A48: 2.1.2.6.4.4 | B48: на рахунки клієнтів АТ "Регіональний інвестиційний банк" | C48: Не передбачено | D48: 25 USD/EUR (у грн. за курсом НБУ) | E48: 25 USD (еквівалент) + 0,5% від суми переказу ( у гривнях за курсом НБУ)
A49: 2.1.2.6.4.5 | B49: з метою оплати навчання, лікування | C49: 0,5% від суми переказу min 25 грн. | D49: 0,5% від суми переказу min 25 USD/EUR max 500 USD/EUR (у грн. за курсом НБУ) | E49: 0,5% від суми переказу min еквівалент 25 USD max еквівалент 500 USD (у грн. за курсом НБУ)
A50: 2.1.2.6.4.6 | B50: на рахунки Міністерства оборони України, Державної прикордонної служби України, їх підрозділів та частин з метою благодійної допомоги з організації матеріально-технічного та медичного забеспечення Збройниї сил України | C50: Не тарифікується | D50: Не передбачено | E50: Не передбачено
A51: 2.1.2.6.4.7 | B51: за системами грошових переказів | C51: Згідно тарифів систем грошових переказів | D51: Згідно тарифів систем грошових переказів | E51: Не передбачено
A52: 2.1.2.6.4.8 | B52: наданих Банком як кредит відповідно до договору | C52: Не тарифікується | D52: Не передбачено | E52: Не передбачено
A53: 2.1.2.6.5 | B53: в рамках послуги "Регулярний платіж":
A54: 2.1.2.6.5.1 | B54: в межах Банку
A55: 2.1.2.6.5.1.2 | B55: на власні рахунки (за виключенням рахунків, відкритих як фізичній особі-підприємцю) | C55: Не тарифікується | D55: Не тарифікується | E55: Не тарифікується
A56: 2.1.2.6.5.1.3 | B56: на рахунки інших отримувачів | C56: 0,25 % від суми min 5 грн., max 1000 грн. | D56: Не передбачено | E56: Не передбачено
A57: 2.1.2.6.5.2 | B57: за межі Банку | C57: 0,50 % від суми min 10 грн. | D57: Не передбачено | E57: Не передбачено
A58: 2.1.2.7 | B58: Безготівкове списання коштів Банком з рахунку для подальшої конвертації/купівлі-продажу на валютному ринку України (в т.ч. за операцією "Обмін валют" в СДО "ПІВДЕННИЙ MYBANK" і Мобільному застосунку "Pivdenny Online") | C58: Не тарифікується | D58: Не тарифікується | E58: Не тарифікується
A59: 2.1.2.8 | B59: Повернення помилково зарахованих коштів (не з вини Банку), які надійшли на рахунок у безготівковій формі, за заявою власника рухунку або довіреної особи | C59: Не тарифікується | D59: 25 USD (у гривні за курсом НБУ) | E59: 25 USD (у гривні за курсом НБУ)

Sheet Для фінансового старту
D1: "ЗАТВЕРДЖЕНО" рішенням Продуктово-тарифного комітету (протокол №73 від 29.10.2025 року) Вступають в дію з 05.11.2025 року
A2: Тарифи на банківськи послуги Акціонерного банку "Південний"
A3: 2 | B3: ФІЗИЧНІ ОСОБИ
A4: 2.1 | B4: ВЕДЕННЯ ПОТОЧНИХ РАХУНКІВ ФІЗИЧНИХ ОСІБ У НАЦІОНАЛЬНІЙ, ІНОЗЕМНИХ ВАЛЮТАХ ТА У БАНКІВСЬКИХ МЕТАЛАХ
A5: 2.1.2 | B5: Тарифний план "Для фінансового старту" (для малолітніх/неповнолітніх осіб)
B6: Операція/послуга | C6: Гривня | D6: Долари США, Євро
A7: 2.1.2.1 | B7: Обслуговування рахунків:
A8: 2.1.2.1.1 | B8: Відкриття поточного рахунку | C8: Не тарифікується | D8: Не тарифікується
A9: 2.1.2.1.2 | B9: Закриття поточного рахунку | C9: Не тарифікується
A10: 2.1.2.1.3 | B10: Плата за обслуговування неактивного рахунку | C10: Не тарифікується
B11: «Неактивний рахунок» - рахунок, по якому не було оборотів на протязі останніх 6 місяців, за виключенням внутрішньобанківських операцій по нарахуванню % та списанню комісії.
A12: 2.1.2.1.4 | B12: Процентна ставка, відсотків річних, що нараховується щомісяця на щоденні фактичні залишки грошових коштів на рахунку (згідно рішення КУАП) | C12: 0 | D12: 0
A13: 2.1.2.2 | B13: Готівкове поповнення рахунків | C13: Не тарифікується | D13: Не тарифікується
A14: 2.1.2.3 | B14: Безготівкове зарахування коштів на рахунки:
A15: 2.1.2.3.1 | B15: зарахування коштів, що надійшли від органів ПФ, УСЗН та ДСЗ (державна служба зайнятості), ФСС (фонд соціального страхування) | C15: Не тарифікується | D15: Не передбачено
A16: 2.1.2.3.2 | B16: за системами грошових переказів, якими це передбачено (за виключенням переказів SWIFT) | C16: Не тарифікується | D16: Не тарифікується
A17: 2.1.2.3.3 | B17: наданих Банком як кредит відповідно до договору | C17: Не тарифікується | D17: Не передбачено
A18: 2.1.2.3.4 | B18: за Депозитними договорами | C18: Не тарифікується | D18: Не тарифікується
A19: 2.1.2.3.5 | B19: Безготівкове зарахування коштів, які надійшли на рахунок після конвертації/купівлі-продажу на валютному ринку України | C19: Не тарифікується | D19: Не тарифікується
A20: 2.1.2.3.6 | B20: інші надходження (в т.ч. перекази SWIFT): | C20: 1 % від суми | D20: 1 % від суми (у гривні за курсом НБУ)
A21: 2.1.2.4 | B21: Видача готівкових коштів з рахунків | C21: Не тарифікується | D21: Не тарифікується
A22: 2.1.2.5 | B22: Безготівкові перекази з рахунків у відділенні банку:
A23: 2.1.2.5.1.1 | B23: В межах Банку
A24: 2.1.2.5.1.2 | B24: на власні рахунки (за виключенням рахунків, відкритих як фізичній особі-підприємцю) | C24: Не тарифікується | D24: Не тарифікується
A25: 2.1.2.5.1.3 | B25: на рахунки інших отримувачів | C25: 0,5% min 25 грн., max 1500 грн. | D25: 0,5% від суми переказу min 5 USD/EUR, max 50 USD/EUR (у грн. за курсом НБУ)
A26: 2.1.2.5.1.4 | B26: на внутрішньобанківські рахунки | C26: Не тарифікується | D26: Не тарифікується
A27: 2.1.2.5.2.1 | B27: В інші банки за межами України | C27: Не передбачено | D27: 0,75% від суми переказу min 30 USD/EUR max 500 USD/EUR (у грн. за курсом НБУ)
A28: 2.1.2.5.2.2 | B28: В інші банки по території України (по рахункам зі спеціальним режимом користування для валюти Гривня - не тарифікується) | C28: 1 % від суми, min 25,00 грн. | D28: 1 % від суми переказу min 30 USD/EUR (у грн. за курсом НБУ)
A29: 2.1.2.5.2.3 | B29: на рахунки клієнтів АТ "Регіональний інвестиційний банк" | C29: Не передбачено | D29: 25 USD/EUR (у грн. за курсом НБУ)
A30: 2.1.2.5.2.4 | B30: з метою оплати навчання, лікування | C30: 0,5% від суми переказу min 25 грн. | D30: 0,5% від суми переказу min 25 USD/EUR max 500 USD/EUR (у грн. за курсом НБУ)
A31: 2.1.2.5.2.5 | B31: на рахунки Міністерства оборони України, Державної прикордонної служби України, їх підрозділів та частин з метою благодійної допомоги з організації матеріально-технічного та медичного забезпечення Збройних сил України | C31: Не тарифікується | D31: Не передбачено
A32: 2.1.2.5.2.6 | B32: за системами грошових переказів | C32: Згідно тарифів систем грошових переказів | D32: Згідно тарифів систем грошових переказів
A33: 2.1.2.6 | B33: Повернення помилково зарахованих коштів (не з вини Банку), які надійшли на рахунок у безготівковій формі, за заявою власника рухунку або довіреної особи | C33: Не тарифікується | D33: 25 USD (у гривні за курсом НБУ)

Sheet Для інвестицій
E1: "ЗАТВЕРДЖЕНО" рішенням Продуктово-тарифного комітету (протокол №73 від 29.10.2025 року) Вступають в дію з 05.11.2025 року
A2: Тарифи на банківськи послуги Акціонерного банку "Південний"
A3: 2 | B3: ФІЗИЧНІ ОСОБИ
A4: 2.1 | B4: ВЕДЕННЯ ПОТОЧНИХ РАХУНКІВ ФІЗИЧНИХ ОСІБ У НАЦІОНАЛЬНІЙ, ІНОЗЕМНИХ ВАЛЮТАХ ТА У БАНКІВСЬКИХ МЕТАЛАХ
A5: 2.1.3 | B5: Тарифний план "Для інвестицій"
B6: Операція/послуга | C6: Гривня | D6: Долари США, Євро | E6: Англійський фунт стерлінгів, Швейцарський франк
A7: 2.1.3.1 | B7: Обслуговування рахунків
A8: 2.1.3.1.1 | B8: Відкриття поточного рахунку | C8: 200 грн.
A9: 2.1.3.1.2 | B9: Закриття рахунку | C9: Не тарифікується | D9: Не тарифікується | E9: Не тарифікується
A10: 2.1.3.1.3 | B10: Плата за обслуговування неактивного рахунку | C10: 50 грн на місяць, але не більше залишку на рахунку
B11: «Неактивний рахунок» - рахунок, по якому не було оборотів на протязі останніх 6 місяців, за виключенням внутрішньобанківських операцій по нарахуванню % та списанню комісії.
A12: 2.1.3.1.4 | B12: Річна відсоткова ставка, що нараховується щомісяця на щоденні фактичні залишки грошових коштів на рахунку (згідно рішення КУАП) | C12: 0 | D12: 0 | E12: 0
A13: 2.1.3.2 | B13: Готівкове поповнення рахунків | C13: Не передбачено | D13: Не передбачено | E13: Не передбачено
A14: 2.1.3.3 | B14: Безготівкове зарахування коштів на рахунки | C14: Не тарифікується | D14: Не тарифікується | E14: Не тарифікується
A15: 2.1.3.4 | B15: Видача готівкових коштів з рахунків | C15: Не передбачено | D15: Не передбачено | E15: Не передбачено
A16: 2.1.3.5 | B16: Безготівкові перекази з рахунків:
A17: 2.1.3.5.1 | B17: у системі дистанційного обслуговування "ПІВДЕННИЙ MYBANK" | C17: згідно з Додатком №3 до Тарифів
A18: 2.1.3.5.2 | B18: у Мобільному застосунку "Pivdenny Online" | C18: згідно з Додатком №6 до Тарифів
A19: 2.1.3.5.3 | B19: через сервіс "Open Banking" | C19: згідно з Додатком №7 до Тарифів
A20: 2.1.3.5.4 | B20: у відділені Банку:
A21: 2.1.3.5.4.1 | B21: в межах Банку
A22: 2.1.3.5.4.1.1 | B22: на власні рахунки (за виключенням рахунків, відкритих як фізичній особі-підприємцю) | C22: Не тарифікується | D22: Не тарифікується | E22: Не тарифікується
A23: 2.1.3.5.4.1.2 | B23: на рахунки інших отримувачів | C23: 0,5% від суми переказу min 25 грн., max 1500 грн. | D23: 0,5% від суми переказу min 5 USD/EUR, max 50 USD/EUR ( у грн. за курсом НБУ) | E23: 0,5% від суми переказу min еквівалент 5 USD, max еквівалент 50 USD ( у грн. за курсом НБУ)
A24: 2.1.3.5.4.1.3 | B24: на внутрішньобанківські рахунки | C24: Не тарифікується | D24: Не тарифікується | E24: Не тарифікується
A25: 2.1.3.5.4.2 | B25: В інші банки за межами України | C25: Не передбачено | D25: 0,75% від суми переказу min 30 USD/EUR max 500 USD/EUR (у грн. за курсом НБУ) | E25: 0,75% від суми переказу min еквівалент 30 USD max еквівалент 500 USD (у грн. за курсом НБУ)
A26: 2.1.3.5.4.3 | B26: В інші банки по території України
A27: 2.1.3.5.4.3.1 | B27: на власні рахунки: | C27: 1 % від суми, min 25,00 грн. | D27: 1 % від суми переказу min 30 USD/EUR (у грн. за курсом НБУ) | E27: 1 % від суми переказу min еквівалент 30 USD (у грн. за курсом НБУ)
A28: 2.1.3.5.4.3.2 | B28: на рахунки інших отримувачів | C28: 1 % від суми, min 25,00 грн. | D28: Не передбачено | E28: Не передбачено
A29: 2.1.3.5.4.4 | B29: на рахунки клієнтів АТ "Регіональний інвестиційний банк" | C29: Не передбачено | D29: 25 USD/EUR (у грн. за курсом НБУ) | E29: 25 USD (еквівалент) + 0,5% від суми переказу ( у гривнях за курсом НБУ)
A30: 2.1.3.5.4.5 | B30: з метою оплати навчання, лікування | C30: 0,5% від суми переказу min 25 грн. | D30: 0,5% від суми переказу min 25 USD/EUR max 500 USD/EUR у грн. за курсом НБУ) | E30: 0,5% від суми переказу min еквівалент 25 USD max еквівалент 500 USD (у грн. за курсом НБУ)
A31: 2.1.3.5.4.6 | B31: на рахунки Міністерства оборони України, Державної прикордонної служби України, їх підрозділів та частин з метою благодійної допомоги з організації матеріально-технічного та медичного забеспечення Збройниї сил України | C31: Не тарифікується | D31: Не передбачено | E31: Не передбачено
A32: 2.1.3.6 | B32: Безготівкове списання коштів Банком з рахунку для подальшої конвертації/купівлі-продажу на валютному ринку України (в т.ч. за операцією "Обмін валют" в СДО "ПІВДЕННИЙ MYBANK" і Мобільному застосунку "Pivdenny Online") | C32: Не тарифікується | D32: Не тарифікується | E32: Не тарифікується
A33: 2.1.3.7 | B33: Повернення помилково зарахованих коштів (не з вини Банку), які надійшли на рахунок у безготівковій формі, за заявою власника рухунку або довіреної особи | C33: Не тарифікується | D33: 25 USD (у гривні за курсом НБУ) | E33: 25 USD (у гривні за курсом НБУ)

Sheet Приватний у металі
E1: "ЗАТВЕРДЖЕНО" рішенням Продуктово-тарифного комітету (протокол №73 від 29.10.2025 року) Вступають в дію з 05.11.2025 року
A2: Тарифи на банківськи послуги Акціонерного банку "Південний"
A3: 2 | B3: ФІЗИЧНІ ОСОБИ
A4: 2.1 | B4: ВЕДЕННЯ ПОТОЧНИХ РАХУНКІВ ФІЗИЧНИХ ОСІБ У НАЦІОНАЛЬНІЙ, ІНОЗЕМНИХ ВАЛЮТАХ ТА У БАНКІВСЬКИХ МЕТАЛАХ
A5: 2.1.4 | B5: Тарифний план "Приватний у металі"
B6: Операція/послуга | D6: Золото | F6: Срібло, Платина
A7: 2.1.4.1 | B7: Обслуговування рахунків:
A8: 2.1.4.1.1 | B8: Відкриття поточного рахунку | D8: відкриття нових рахунків з 05.10.2020р.- не передбачено | F8: відкриття нових рахунків з 05.10.2020р.- не передбачено
A9: 2.1.4.1.2 | B9: Закриття поточного рахунку | D9: Не тарифікується | F9: Не тарифікується
A10: 2.1.4.1.3 | B10: Річна відсоткова ставка, що нараховується щомісяця на щоденні фактичні залишки банківських металів на поточному рахунку (згідно рішення КУАП) | D10: 0,00% | F10: 0,00%
A11: 2.1.4.2 | B11: Зарахування банківських металів (з фізичною поставкою) на поточний рахунок | D11: Не передбачено | F11: Не передбачено
A12: 2.1.4.3 | B12: Зарахування банківських металів (без фізичної поставки) на поточний рахунок | D12: Не передбачено | F12: Не передбачено
A13: 2.1.4.4 | B13: Безготівкові перекази з рахунків в межах Банку:
A14: 2.1.4.4.1 | B14: на власні рахунки (за виключенням рахунків, відкритих як фізичній особі-підприємцю) | D14: Не тарифікується | F14: Не тарифікується
A15: 2.1.4.4.2 | B15: на рахунки інших отримувачів | D15: Не передбачено | F15: Не передбачено
A16: 2.1.4.5 | B16: Безготівкові перекази з рахунків за межі Банку | D16: Не передбачено | F16: Не передбачено
A17: 2.1.4.6 | B17: Купівля банківських металів (без фізичної поставки) за дорученням клієнтів на валютному ринку України (заявки на купівлю приймаються від 1 тр.унцій та більше) | D17: 0,50 % від вартості (у гривні за курсом НБУ) | F17: 0,50 % від вартості (у гривні за курсом НБУ)
A18: 2.1.4.7 | B18: Продаж банківських металів (без фізичної поставки) за дорученням клієнтів на валютному ринку України | D18: 0,50 % від вартості (у гривні за курсом НБУ) | F18: 0,50 % від вартості (у гривні за курсом НБУ)
A19: 2.1.4.8 | B19: Видача банківських металів з фізичною поставкою номіналами зливків, які є в наявності в касі Банку на момент видачі з поточного рахунку клієнта фізичної особи у разі зарахування на поточний рахунок без фізичної поставки: | F19: Не передбачено
A20: 2.1.4.8.1 | B20: Золоті зливки 1000г | C20: 32,20 тр. унцій | D20: 0.005 | E20: Від вартості зливку банківського металу, що видається в гривнях за курсом НБУ на день здійснення операції | F20: Х
A21: 2.1.4.8.2 | B21: Золоті зливки 500г | C21: 16,10 тр. унцій | D21: 0.0065
A22: 2.1.4.8.3 | B22: Золоті зливки 250г | C22: 8,04 тр. унцій | D22: 0.0085
A23: 2.1.4.8.4 | B23: Золоті зливки 100г | C23: 3,22 тр. унцій | D23: 0.0115
A24: 2.1.4.8.5 | B24: Золоті зливки 50г | C24: 1,61 тр. унцій | D24: 0.015
A25: 2.1.4.8.6 | B25: Золоті зливки 31,103г | C25: 1 тр. унцій | D25: 0.025
A26: 2.1.4.8.7 | B26: Золоті зливки 20г | C26: 0,64 тр. унцій | D26: 0.03
A27: 2.1.4.8.8 | B27: Золоті зливки 10г | C27: 0,32 тр. унцій | D27: 5,50%
A28: 2.1.4.8.9 | B28: Золоті зливки 5г | C28: 0,16 тр. унцій | D28: 8,50%
A29: 2.1.4.8.10 | B29: Золоті зливки 2,5г | C29: 0,08 тр. унцій | D29: 15,00%
A30: 2.1.4.8.11 | B30: Золоті зливки 2г | C30: 0,06 тр. унцій | D30: 20,00%
A31: 2.1.4.8.12 | B31: Золоті зливки 1г | C31: 0,03 тр. унцій | D31: 40,00%

Sheet Ескроу
B1: "ЗАТВЕРДЖЕНО" рішенням Продуктово-тарифного комітету (протокол №73 від 29.10.2025 року) Вступають в дію з 05.11.2025 року
A2: Тарифи на банківськи послуги Акціонерного банку "Південний"
A3: 2 | B3: ФІЗИЧНІ ОСОБИ
A4: 2.1 | B4: ВЕДЕННЯ ПОТОЧНИХ РАХУНКІВ ФІЗИЧНИХ ОСІБ У НАЦІОНАЛЬНІЙ, ІНОЗЕМНИХ ВАЛЮТАХ ТА У БАНКІВСЬКИХ МЕТАЛАХ
A5: 2.1.5 | B5: Тарифний план "Ескроу"
B6: Операція/послуга | C6: Гривня
A7: 2.1.5.1 | B7: Обслуговування рахунків
A8: 2.1.5.1.1 | B8: Відкриття поточного рахунку | C8: Не тарифікується
A9: 2.1.5.1.2 | B9: Закриття поточного рахунку | C9: Не тарифікується
A10: 2.1.5.1.3 | B10: Обслуговування рахунку (послуги пов'язані з обслуговуванням рахунка та здійсненням операцій за ним):
A11: 2.1.5.1.3.1. | B11: - кількість бенефіціарів не перевищує 500 осіб: | C11: 2% від суми виплат, мін. 30 тис. грн (одноразово)
A12: 2.1.5.1.3.2. | B12: - кількість бенефіціарів перевищує 500 осіб | C12: 2% від суми виплат, мін. 30 тис.грн. + 15 тис. грн. за кожні наступні 500 осіб (одноразово)
A13: 2.1.5.1.4 | B13: Річна відсоткова ставка, що нараховується щомісяця на щоденні фактичні залишки грошових коштів на рахунку (згідно рішення КУАП) | C13: 0
A14: 2.1.5.1.5 | B14: Внесення уточнень до реестру бенефіціарів по зверненню емітента цінних паперів | C14: 50 грн. за обробку одного звернення (сплачується власником рахунку ескроу).
A15: 2.1.5.2 | B15: Готівкове поповнення рахунків:
A16: 2.1.5.2.1 | B16: власником рахунку (у т.ч. за довіреністю) | C16: Не тарифікується
A17: 2.1.5.2.2 | B17: іншою особою | C17: Не передбачено
A18: 2.1.5.3 | B18: Безготівкове зарахування коштів на рахунки | C18: Не тарифікується
A19: 2.1.5.4 | B19: Видача готівкових коштів з рахунків (згідно договору рахунку умовного зберігання) | C19: Не тарифікується
A20: 2.1.5.5 | B20: Безготівкові перекази з рахунків (згідно договору рахунку умовного зберігання):
A21: 2.1.5.5.1 | B21: в межах Банку
A22: 2.1.5.5.1.1 | B22: на власні рахунки | C22: Не тарифікується
A23: 2.1.5.5.1.2 | B23: на рахунки інших отримувачів | C23: Не тарифікується
A24: 2.1.5.5.1.3 | B24: на внутрішньобанківські рахунки | C24: Не тарифікується
A25: 2.1.5.5.2 | B25: В інші банки за межами України | C25: Не передбачено
A26: 2.1.5.5.3 | B26: В інші банки по території України (згідно договору рахунку умовного зберігання)
A27: 2.1.5.5.3.1 | B27: на власні рахунки: | C27: Не тарифікується
A28: 2.1.5.5.3.2 | B28: на рахунки інших отримувачів | C28: Не тарифікується
A29: 2.1.5.6 | B29: Повернення помилково зарахованих коштів (не з вини Банку), які надійшли на рахунок у безготівковій формі, за заявою власника рухунку або довіреної особи | C29: Не тарифікується

Sheet Пакетна пропозиція
F1: "ЗАТВЕРДЖЕНО" рішенням Продуктово-тарифного комітету (протокол №26 від 09.04.2026 року) Вступають в дію з 09.04.2026 року Діють до 08.05.2026 року
A3: Тарифи на банківськи послуги Акціонерного банку "Південний"
A4: 2 | B4: ФІЗИЧНІ ОСОБИ
A5: 2.1 | B5: Пакетна пропозиція для фізичних осіб "ПАРТНЕРСЬКА"1
B6: Операція/послуга | C6: Гривня | D6: Долар США/ Євро | E6: Англійський фунт стерлінгів, Швейцарський франк, Польський злотий | F6: Пояснення
A7: 2.1.1 | B7: Відкриття продуктів 2.2 та/або 2.3 та/або 2.4 та/або 2.5 із встановленням категорії "Партнер" | C7: Не тарифікується | D7: Не тарифікується | E7: Не тарифікується | F7: Пакетна пропозиція розповсюджується для фізичних осіб, віднесених до категорії "Партнер"1
A9: 2.2 | B9: ВЕДЕННЯ ПОТОЧНИХ РАХУНКІВ ФІЗИЧНИХ ОСІБ У НАЦІОНАЛЬНІЙ, ІНОЗЕМНИХ ВАЛЮТАХ ТА У БАНКІВСЬКИХ МЕТАЛАХ
A10: 2.2.1 | B10: ТАРИФНИЙ ПЛАН "ПАРТНЕРСЬКИЙ"
B11: Операція/послуга | C11: Гривня | D11: Долар США/ Євро | E11: Англійський фунт стерлінгів, Швейцарський франк, Польський злотий | F11: Пояснення
A12: 2.2.1.1 | B12: Обслуговування рахунків:
A13: 2.2.1.1.1 | B13: Відкриття поточного рахунку | C13: Не тарифікується | D13: Не тарифікується | E13: Не тарифікується
A14: 2.2.1.1.2 | B14: Закриття поточного рахунку | C14: Не тарифікується | D14: Не тарифікується | E14: Не тарифікується
A15: 2.2.1.1.3 | B15: Плата за обслуговування неактивного рахунку («Неактивний рахунок» - рахунок, по якому не було оборотів на протязі останніх 6 місяців, за виключенням внутрішньобанківських операцій по нарахуванню % та списанню комісії) | C15: 50 грн на місяць, але не більше залишку на рахунку | D15: 10 USD/EUR на місяць, але не більше залишку на рахунку (у гривні за курсом НБУ) | E15: 10 USD на місяць, але не більше залишку на рахунку (у гривні за курсом НБУ)
A16: 2.2.1.1.4 | B16: Річна відсоткова ставка, що нараховується щомісяця на щоденні фактичні залишки грошових коштів на рахунку (згідно рішення КУАП) | C16: 0 | D16: 0 | E16: 0
A17: 2.2.1.2 | B17: Готівкове поповнення рахунків:
A18: 2.2.1.2.1 | B18: власником рахунку (у т.ч. за довіреністю) | C18: Не тарифікується | D18: Не тарифікується | E18: Не тарифікується
A19: 2.2.1.2.2 | B19: іншою особою | C19: Не тарифікується | D19: Не тарифікується | E19: Не тарифікується
A20: 2.2.1.3 | B20: Безготівкове зарахування коштів на рахунки | C20: Не тарифікується | D20: Не тарифікується | E20: Не тарифікується
A21: 2.2.1.4 | B21: Видача готівкових коштів з рахунку: | C21: 1% від суми | D21: 1% від суми | E21: 1% від суми | F21: Попередження Одночасно при зменшенні тарифікації пропорційно збільшується вартість віповідних тарифів/послуг Банку згідно з встановленим Додатком - Конструктором, що є невід'ємною частиною Пакетної пропозиції, розміром.
A22: 2.2.1.5 | B22: Додаткова плата за термінове отримання готівкових коштів у відділеннях Акціонерного банку «Південний» (без оформлення заявки)
A23: 2.2.1.5.1 | B23: до 100 000,00 грн. (або еквівалент в іноземній валюті за курсом НБУ) у день | C23: Не тарифікується | D23: Не тарифікується | E23: Не тарифікується
A24: 2.2.1.5.2 | B24: від 100 000,01 грн. до 7 500 000,00 грн. (або еквівалент в іноземній валюті за курсом НБУ) у день | C24: 1,8% від суми | D24: 1,8% від суми (у гривні за курсом НБУ) | E24: 1,8% від суми
A25: 2.2.1.5.3 | B25: від 7 500 000,01 грн. (або еквівалент в іноземній валюті за курсом НБУ) у день | C25: 1% від суми | D25: 1% від суми (у гривні за курсом НБУ) | E25: 1% від суми
A26: 2.2.1.6 | B26: Безготівкові перекази з рахунків:
A27: 2.2.1.6.1 | B27: у системі дистанційного обслуговування "ПІВДЕННИЙ MYBANK" | C27: згідно з Додатком №3 до Тарифів | D27: згідно з Додатком №3 до Тарифів | E27: згідно з Додатком №3 до Тарифів
A28: 2.2.1.6.2 | B28: у Мобільному застосунку "Pivdenny Online" | C28: згідно з Додатком №6 до Тарифів | D28: згідно з Додатком №6 до Тарифів | E28: згідно з Додатком №6 до Тарифів
A29: 2.2.1.6.3 | B29: через сервіс "Open Banking" | C29: згідно з Додатком №7 до Тарифів
A30: 2.2.1.6.4 | B30: у відділені Банку:
A31: 2.2.1.6.4.1 | B31: в межах Банку
A32: 2.2.1.6.4.1.1 | B32: на власні рахунки (за виключенням рахунків, відкритих як фізичній особі-підприємцю) | C32: Не тарифікується | D32: Не тарифікується | E32: Не тарифікується
A33: 2.2.1.6.4.1.2 | B33: на рахунки інших отримувачів обирається Клієнтом згідно з Додатком - Конструктором, що є невід'ємною частиною Пакетної пропозиції | C33: 0,5% від суми переказу min 25 грн. або max 90 000 грн/ 0,4% від суми переказу min 25 грн. або max 80 000 грн/ 0,3% від суми переказу min 25 грн. або max 70 000 грн/ 0,2% від суми переказу min 25 грн. або max 60 000 грн/ 0,1% від суми переказу min 25 грн. або max 50 000 грн/ або Безкоштовно | D33: 0,5% від суми переказу min 5 USD/EUR, max 50 USD/EUR (у грн. за курсом НБУ) | E33: 0,5% від суми переказу min 5 USD, max 50 USD (у грн. за курсом НБУ) | F33: Попередження Одночасно при зменшенні тарифікації пропорційно збільшується вартість віповідних тарифів/послуг Банку згідно з встановленим Додатком - Конструктором, що є невід'ємною частиною Пакетної пропозиції, розміром.
A34: 2.2.1.6.4.1.3 | B34: на внутрішньобанківські рахунки | C34: Не тарифікується | D34: Не тарифікується | E34: Не тарифікується
A35: 2.2.1.6.4.1.4 | B35: на рахунки забудовників для інвестування в будівництво на первинному ринку обирається Клієнтом згідно з Додатком - Конструктором, що є невід'ємною частиною Пакетної пропозиції | C35: 0,5% від суми переказу min 25 грн. або max 90 000 грн/ 0,4% від суми переказу min 25 грн. або max 80 000 грн/ 0,3% від суми переказу min 25 грн. або max 70 000 грн/ 0,2% від суми переказу min 25 грн. або max 60 000 грн/ 0,1% від суми переказу min 25 грн. або max 50 000 грн/ або Безкоштовно | D35: Не передбачено | E35: Не передбачено | F35: Попередження Одночасно при зменшенні тарифікації пропорційно збільшується вартість віповідних тарифів/послуг Банку згідно з встановленим Додатком - Конструктором, що є невід'ємною частиною Пакетної пропозиції, розміром.
A36: 2.2.1.6.4.2 | B36: В інші банки за межами України обирається Клієнтом згідно з Додатком - Конструктором, що є невід'ємною частиною Пакетної пропозиції | C36: Не передбачено | D36: 0,7% від суми переказу min 30 USD/EUR або max 2750 USD/EUR (у грн. за курсом НБУ)/ 0,6% від суми переказу min 30 USD/EUR або max 2500 USD/EUR (у грн. за курсом НБУ)/ 0,5% від суми переказу min 30 USD/EUR або max 2250 USD/EUR (у грн. за курсом НБУ)/ 0,4% від суми переказу min 30USD/EUR. або max 2000 USD/EUR (у грн. за курсом НБУ)/ 0,3% від суми переказу min 30 USD/EUR. або max 1750 USD/EUR (у грн. за курсом НБУ)/ 0,2% від суми переказу min 30 USD/EUR. або max 1500 USD/EUR (у грн. за курсом НБУ)/ 0,1% від суми переказу min 30 USD/EUR. або max 1250 USD/EUR (у грн. за курсом НБУ)/ 200 USD/EUR/ 100 USD/EUR або Безкоштовно | E36: 0,7% від суми переказу min 30 USD/EUR або max 2750 USD/EUR (у грн. за курсом НБУ)/ 0,6% від суми переказу min 30 USD/EUR або max 2500 USD (у грн. за курсом НБУ)/ 0,5% від суми переказу min 30 USD/EUR або max 2250 USD (у грн. за курсом НБУ)/ 0,4% від суми переказу min 30USD/EUR. або max 2000 USD (у грн. за курсом НБУ)/ 0,3% від суми переказу min 30 USD/EUR. або max 1750 USD (у грн. за курсом НБУ)/ 0,2% від суми переказу min 30 USD/EUR. або max 1500 USD (у грн. за курсом НБУ)/ 0,1% від суми переказу min 30 USD/EUR. або max 1250 USD (у грн. за курсом НБУ)/ 200 USD/EUR/ 100 USD або Безкоштовно | F36: Попередження Одночасно при зменшенні тарифікації пропорційно збільшується вартість віповідних тарифів/послуг Банку згідно з встановленим Додатком - Конструктором, що є невід'ємною частиною Пакетної пропозиції, розміром.
A37: 2.2.1.6.4.3 | B37: В інші банки по території України обирається Клієнтом згідно з Додатком - Конструктором, що є невід'ємною частиною Пакетної пропозиції | C37: 1% від суми переказу min 25 грн. або max 90 000 грн/ 0,4% від суми переказу min 25 грн. або max 80 000 грн/ 0,3% від суми переказу min 25 грн. або max 70 000 грн/ 0,2% від суми переказу min 25 грн. або max 60 000 грн/ 0,1% від суми переказу min 25 грн. або max 50 000 грн/ або Безкоштовно | D37: 1 % від суми переказу min 30 USD/EUR (у грн. за курсом НБУ) | E37: 1 % від суми переказу min 30 USD (у грн. за курсом НБУ) | F37: Попередження Одночасно при зменшенні тарифікації пропорційно збільшується вартість віповідних тарифів/послуг Банку згідно з встановленим Додатком - Конструктором, що є невід'ємною частиною Пакетної пропозиції, розміром.
A38: 2.2.1.6.4.3.1 | B38: на рахунки забудовників для інвестування в будівництво на первинному ринку обирається Клієнтом згідно з Додатком - Конструктором, що є невід'ємною частиною Пакетної пропозиції | C38: 0,5% від суми переказу min 25 грн. або max 90 000 грн/ 0,4% від суми переказу min 25 грн. або max 80 000 грн/ 0,3% від суми переказу min 25 грн. або max 70 000 грн/ 0,2% від суми переказу min 25 грн. або max 60 000 грн/ 0,1% від суми переказу min 25 грн. або max 50 000 грн/ або Безкоштовно | D38: Не передбачено | E38: Не передбачено | F38: Попередження Одночасно при зменшенні тарифікації пропорційно збільшується вартість віповідних тарифів/послуг Банку згідно з встановленим Додатком - Конструктором, що є невід'ємною частиною Пакетної пропозиції, розміром.
A39: 2.2.1.6.4.4 | B39: на рахунки клієнтів АТ "Регіональний інвестиційний банк" | C39: Не передбачено | D39: 25 USD/EUR (у грн. за курсом НБУ) | E39: 25 USD (у грн. за курсом НБУ)
A40: 2.2.1.6.4.5 | B40: з метою оплати навчання, лікування обирається Клієнтом згідно з Додатком - Конструктором, що є невід'ємною частиною Пакетної пропозиції | C40: 0,5% від суми переказу min 25 грн. або max 90 000 грн/ 0,4% від суми переказу min 25 грн. або max 80 000 грн/ 0,3% від суми переказу min 25 грн. або max 70 000 грн/ 0,2% від суми переказу min 25 грн. або max 60 000 грн/ 0,1% від суми переказу min 25 грн. або max 50 000 грн/ або Безкоштовно | D40: 0,5% від суми переказу min 25 USD/EUR max 500 USD/EUR (у грн. за курсом НБУ) | E40: 0,5% від суми переказу min 25 USD max 500 USD (у грн. за курсом НБУ) | F40: Попередження Одночасно при зменшенні тарифікації пропорційно збільшується вартість віповідних тарифів/послуг Банку згідно з встановленим Додатком - Конструктором, що є невід'ємною частиною Пакетної пропозиції, розміром.
A41: 2.2.1.6.4.6 | B41: За системами грошових переказів, якими це передбачено | C41: Згідно тарифів систем грошових переказів | D41: Згідно тарифів систем грошових переказів | E41: Згідно тарифів систем грошових переказів
A42: 2.2.1.6.4.7 | B42: на рахунки Міністерства оборони України, Державної прикордонної служби України, їх підрозділів та частин з метою благодійної допомоги з організації матеріально-технічного та медичного забеспечення Збройних сил України | C42: Не тарифікується | D42: Не тарифікується | E42: Не тарифікується
A43: 2.2.1.6.5 | B43: в рамках послуги "Регулярний платіж":
A44: 2.2.1.6.5.1 | B44: в межах Банку
A45: 2.2.1.6.5.1.1 | B45: на власні рахунки (за виключенням рахунків, відкритих як фізичній особі-підприємцю) | C45: Не тарифікується | D45: Не тарифікується | E45: Не тарифікується
A46: 2.2.1.6.5.1.2 | B46: на рахунки інших отримувачів | C46: 0,25% від суми min 5 грн., max 1000 грн. | D46: 0,25% від суми min 1 USD/EUR., max 25 USD/EUR (у грн. за курсом НБУ)/ | E46: 0,25% від суми min 1 USD., max 25 USD (у грн. за курсом НБУ)/
A47: 2.2.1.6.5.2 | B47: за межі Банку | C47: 0,5% від суми min 10 грн. | D47: 0,5% від суми min 2 USD/EUR | E47: 0,5% від суми min 2 USD
A48: 2.2.1.7 | B48: Безготівкове списання коштів Банком з рахунку для подальшої конвертації/купівлі-продажу на МВРУ (в т.ч. за операцією "Обмін валют" в СДО "ПІВДЕННИЙ MYBANK" і Мобільному застосунку "Pivdenny Online") | C48: Не тарифікується | D48: Не тарифікується | E48: Не тарифікується
A49: 2.2.1.8 | B49: Повернення помилково зарахованих коштів (не з вини Банку), які надійшли на рахунок у безготівковій формі, за заявою власника рухунку або довіреної особи | C49: Не тарифікується | D49: Не тарифікується | E49: Не тарифікується
A51: 2.3 | B51: ВКЛАД "ПРЕМІУМ - ПАРТНЕР"
A52: 2.3.1 | B52: Валюта вкладу | C52: Сума вкладу при оформленні / автоматичній пролонгації | D52: Процентна ставка для строку, % річних
D53: обирається Клієнтом згідно з Додатком - Конструктором, що є невід'ємною частиною Пакетної пропозиції Попередження Одночасно при збільшенні процентної ставки пропорційно збільшується вартість відповідних тарифів/послуг Банку згідно з встановленим Додатком - Конструктором, що є невід'ємною частиною Пакетної пропозиції, розміром
D54: 3 місяці
A55: 2.3.1.1 | B55: гривня | C55: від 2 000 000,00 | D55: 14.5
A56: 2.3.1.2 | B56: долар США | C56: від 100 000,00 до 1 000 000,00 | D56: 1.5
A57: 2.3.1.3 | B57: євро | C57: від 100 000,00 до 1 000 000,00 | D57: 1.5
A58: 2.3.2 | B58: Умови вкладу
A59: 2.3.2.1 | B59: Поповнення вкладу | C59: При наявності бонусу до ставки можливість поповнення вкладу не передбачена
A60: 2.3.2.2 | B60: Виплата процентів | C60: щомісяця
A61: 2.3.2.3 | B61: Автоматична пролонгація | C61: не передбачена
A62: 2.3.2.4 | B62: Умови повернення | C62: після закінчення строку дії договору
A63: 2.3.2.5 | B63: Програма лояльності | C63: передбачена при оформленні вкладу у вигляді бонусу до ставки згідно з Додатком - Конструктором, що є невід'ємною частиною Пакетної пропозиції. | D63: +0,25%; +0,50%; +0,75%; +1,00%; +1,25%; +1,50%;
A64: 2.3.2.6 | B64: гривня з урахуванням Програми лояльності | C64: від 2 000 000,00 | D64: 14,50; 14,75; 15,00; 15,25; 15,50; 15,75; 16,00;
A65: 2.3.2.7 | B65: долар США з урахуванням Програми лояльності | C65: від 100 000,00 до 1 000 000,00 | D65: 1,50; 1,75%; 2,00%; 2,25%; 2,50%
A66: 2.3.2.8 | B66: євро з урахуванням Програми лояльності | C66: від 100 000,00 до 1 000 000,00 | D66: 1,50%; 1,75%; 2,00%; 2,25%
A68: 2.4 | B68: Поточний рахунок з використанням платіжної картки в Тарифах "Картка для власних потреб"; "Картка для виплат"; "Картка моряка/ ІТ"; "Зарплатна картка"
A69: 2.4.1 | B69: Послуга | D69: Тариф, Тарифний план
D70: обираються Клієнтом згідно з Додатком - Конструктором, що є невід'ємною частиною Пакетної пропозиції
D71: БЕЗМЕЖ | E71: ЕЛІТ | F71: Пояснення
A72: 2.4.1.1 | B72: Плата за оформлення/ зміну Тарифного плану, в т.ч. з відкриттям рахунку з подальшим обслуговуванням в рамках Тарифів Банку по обслуговуванню поточного рахунку з використанням платіжної картки з оформленням основної персоніфікованої картки (іменна) | C72: віртуальна для власника рахунку | D72: Безкоштовно | E72: Безкоштовно | F72: Попередження Одночасно при використанні тарифу пропорційно збільшується вартість віповідних тарифів/послуг Банку згідно з встановленим Додатком - Конструктором, що є невід'ємною частиною Пакетної пропозиції, розміром. Оформлення основної картки з відкриттям першого/ єдиного рахунку в Банку здійснюється виключно у вигляді фізичної картки. Валюта на вибір: гривня/ долар США/ євро.
C73: фізична (у вигляді пластикової картки) для власника рахунку | D73: Безкоштовно | E73: Безкоштовно
A75: 2.5 | B75: ВАЛЮТНО-ОБМІННІ ОПЕРАЦІЇ
B76: Операція/послуга | C76: Гривня | D76: Долари США, Євро | E76: Англійський фунт стерлінгів, Швейцарський франк, Польський злотий | F76: Пояснення
A77: 2.5.1. | B77: Купівля-продаж іноземної валюти за заявою клієнта на МВРУ обираються Клієнтом згідно з Додатком - Конструктором, що є невід'ємною частиною Пакетної пропозиції | C77: 0,5% від суми переказу (у грн. за курсом НБУ)/ 0,4% від суми переказу (у грн. за курсом НБУ)/ 0,3% від суми переказу (у грн. за курсом НБУ)/ 0,2% від суми переказу (у грн. за курсом НБУ)/ 0,1% від суми переказу (у грн. за курсом НБУ)/ або Безкоштовно | F77: Попередження Одночасно при зменшенні тарифікації пропорційно збільшується вартість віповідних тарифів/послуг Банку згідно з встановленим Додатком - Конструктором, що є невід'ємною частиною Пакетної пропозиції, розміром.
A78: 2.5.2 | B78: Безготівкові операції з конвертації іноземних валют: обираються Клієнтом згідно з Додатком - Конструктором, що є невід'ємною частиною Пакетної пропозиції | C78: 0,5% від суми переказу (у грн. за курсом НБУ)/ 0,4% від суми переказу (у грн. за курсом НБУ)/ 0,3% від суми переказу (у грн. за курсом НБУ)/ 0,2% від суми переказу (у грн. за курсом НБУ)/ 0,1% від суми переказу (у грн. за курсом НБУ)/ або Безкоштовно | F78: Попередження Одночасно при зменшенні тарифікації пропорційно збільшується вартість віповідних тарифів/послуг Банку згідно з встановленим Додатком - Конструктором, що є невід'ємною частиною Пакетної пропозиції, розміром.
A80: 1 | B80: Пакетна пропозиція розповсюджується для фізичних осіб, віднесених до категорії "Партнер". Категорія "Партнер" встановлюється Банком клієнтам та членам їх сімей, якщо такі клієнти відносяться до бізнес-ліній КБВ, РЕР, ТОП-менеджер, і є особами, співпраця з якими сприяє розвитку відносин з клієнтами корпоративного бізнесу, а саме якщо клієнти: - є авторитетними представниками своєї професії/роду діяльності; - мають вплив на взаємовідносини з клієнтами корпоративного бізнесу; - інші обґрунтовані переваги. Члени сім'ї - чоловік/дружина або прирівняні до них особи, син, дочка, пасинок, падчерка, усиновлена особа, особа, яка перебуває під опікою або піклуванням, зять та невістка і прирівняні до них особи, батько, мати, вітчим, мачуха, усиновлювачі, опікуни чи піклувальники, тощо. Розгляд присвоєння клієнтові категорії "Партнер" можливий після надання відповідних документів та/або обґрунтування.

Sheet Додаток
H1: Додаток Конструктор до Пакетної пропозиції "Партнерська"
A2: Термін дії, днів | B2: 1 | C2: № | D2: Перелік опцій | E2: Зміна | F2: Тариф | G2: Сума операції | H2: Новий тариф | I2: Економія+/Витрати- | M2: =IF(AND(R2 = 0, L2="Error"), 0, IF(Q3 = 0, O2/10000 - 0.015, -Q3)) -> -0.015 | N2: =IF(AND(S2 = 0, M2="Error"), 0, IF(#REF! = 0, P2/10000 - 0.015, -#REF!)) -> 
C3: 1 | D3: Безготівкові перекази з рахунку в межах Банку | E3: 0 | F3: 0.005 | G3: 0 | H3: =F3+E3 -> 0.005 | I3: =G3*(F3-H3) -> 0 | J3: 50 | L3: =J3/10000 - 0.005 -> 0 | M3: =IF(D3="Error", 0, VLOOKUP($D$2, __SETTINGS__!$A$2:$W$6, 13, FALSE)) -> 0
C4: 2 | D4: Безготівкові перекази з рахунку в інші банки по території України | E4: 0 | F4: 0.005 | G4: 0 | H4: =F4+E4 -> 0.005 | I4: =G4*(F4 - H4) -> 0 | J4: 145 | L4: =J4/10000 - 0.01 -> 0.0045 | M4: =IF(D4="Error", 0, VLOOKUP($D$2, __SETTINGS__!$A$2:$W$6, 14, FALSE)) -> 0.005 | P4: =J4/10000 - 0.008 -> 0.0065
C5: 3 | D5: Видача готівкових коштів з рахунку | E5: 0.0005 | F5: 0.005 | G5: 0 | H5: =F5 + E5 -> 0.0055 | I5: =G5*(F5 - H5) -> 0
C6: 4 | D6: =IF(VLOOKUP($D$2, __SETTINGS__!$A$2:$W$6, 5, FALSE) = 1, "Отримання готівкових коштів в банкоматах та відділеннях інших банків України ", "Error") -> Отримання готівкових коштів в банкоматах та відділеннях інших банків України | E6: 0 | F6: 0.012 | G6: 9100000 | H6: 0.012 | I6: =G6*(F6-H6) -> 0 | J6: 30 | L6: =J6/10000 - 0.015 -> -0.012 | M6: =IF(D6="Error", 0, VLOOKUP($D$2, __SETTINGS__!$A$2:$W$6, 15, FALSE)) -> 500
J7: 0 | L7: =J7/10000 - 0.015 -> -0.015 | M7: =IF(D7="Error", 0, VLOOKUP($D$2, __SETTINGS__!$A$2:$W$6, 16, FALSE)) -> 0.012
C8: 5 | D8: Безготівкове поповнення поточного рахунку у банку "Південний" | E8: 0 | F8: 0.005 | G8: 10000000 | H8: =F8 + E8 -> 0.005 | I8: =G8*(F8-H8) -> 0
C9: 4 | D9: Перерахування, сортування та оброблення готівки в національній валюті по замовленню клієнта | E9: 0 | F9: 0.015 | G9: 0 | H9: =F9+E9 -> 0.015 | I9: =G9*(F9-H9) -> 0 | J9: 30 | M9: =IF(D9="Error", 0, VLOOKUP($D$2, __SETTINGS__!$A$2:$W$6, 17, FALSE)) -> 0.01
C10: 5 | D10: Оформлення основної преміальної картки обрати з переліку | E10: =INDEX(__SETTINGS__!$C$63:$C$69,MATCH($D$10,__SETTINGS__!$B$63:$B$69,0)) -> 0 | F10: x | G10: x | H10: обрати тариф з переліку | I10: =E10 -> 0 | J10: 800 | M10: =IF(D10="Error", 0, VLOOKUP($D$2, __SETTINGS__!$A$2:$W$6, 14, FALSE)) -> 0.005
C11: 7 | D11: =IF(VLOOKUP($D$2, __SETTINGS__!$A$2:$W$6, 8, FALSE) = 1, "Щомісячна плата за обслуговування карток в рамках Тарифного плану", "Error") -> Щомісячна плата за обслуговування карток в рамках Тарифного плану | E11: 0 | F11: 100 | G11: ввести вартість послуги | H11: 100 | I11: =(F11-H11) -> 0 | J11: 80
C12: 6 | D12: =IF(VLOOKUP($D$2, __SETTINGS__!$A$2:$X$6, 10, FALSE) = 1, "Перевірка справжності купюр, перерахування та оброблення готівки", "Error") -> Перевірка справжності купюр, перерахування та оброблення готівки | E12: 0 | F12: 0.002 | G12: 0 | H12: =E12+F12 -> 0.002 | I12: =G12*(F12-H12) -> 0 | M12: =IF(D12="Error", 0, VLOOKUP($C$2, __SETTINGS__!$A$2:$W$6, 19, FALSE)) -> 
C13: 6 | D13: =IF(VLOOKUP($D$2, __SETTINGS__!$A$2:$X$6, 24, FALSE) = 1, "Перерахування, сортування та оброблення готівки в національній валюті по замовленню клієнта", "Error") -> Перерахування, сортування та оброблення готівки в національній валюті по замовленню клієнта | E13: -0.002 | F13: 0.01 | G13: 90000000 | H13: =E13+F13 -> 0.008 | I13: =G13*(F13-H13) -> 180000
C14: 9 | D14: =IF(VLOOKUP($D$2, __SETTINGS__!$A$2:$W$6, 5, FALSE) = 1, "Отримання готівкових коштів в банкоматах та відділеннях за межами України", "Error") -> Отримання готівкових коштів в банкоматах та відділеннях за межами України | E14: 0 | F14: 0.005 | G14: 9000000 | H14: =E14+F14 -> 0.005 | I14: =G14*(F14-H14) -> 0
C16: 8 | D16: =IF(VLOOKUP($D$2, __SETTINGS__!$A$2:$X$6, 12, FALSE) = 1, "Перевірка справжності купюр,перерахування та оброблення готівки", "Error") -> Перевірка справжності купюр,перерахування та оброблення готівки | E16: 0 | F16: 0.005 | G16: 90000000 | H16: =F16 + E16 -> 0.005 | I16: =G16*(F16-H16) -> 0 | M16: =IF(D16="Error", 0, VLOOKUP($D$2, __SETTINGS__!$A$2:$W$6, 20, FALSE)) -> 200
C17: 7 | D17: =IF(VLOOKUP($D$2, __SETTINGS__!$A$2:$X$6, 12, FALSE) = 1, "Оформлення заповідального розпорядження", "Error") -> Оформлення заповідального розпорядження | E17: 0 | F17: 200 | G17: ввести вартість послуги | H17: =E10+F17 -> 200 | I17: =(F17-H17) -> 0 | M17: =IF(D17="Error", 0, VLOOKUP($D$2, __SETTINGS__!$A$2:$W$6, 21, FALSE)) -> 780
C18: 14 | D18: =IF(VLOOKUP($D$2, __SETTINGS__!$A$2:$W$6, 12, FALSE) = 1, "Надання приміщення для здійснення операції у присутності нотаріуса ", "Error") -> Надання приміщення для здійснення операції у присутності нотаріуса | E18: 0.001 | F18: 500 | G18: ввести вартість послуги | H18: =E18+F18 -> 500.001 | I18: =(F18-H18)*B2 -> -0.001 | M18: =IF(D18="Error", 0, VLOOKUP($D$2, __SETTINGS__!$A$2:$W$6, 21, FALSE)) -> 780
C19: 8 | D19: Отримання готівкових коштів(в Україні і за кордоном) | E19: 0.004 | F19: =F6 -> 0.012 | G19: =G6 -> 9100000 | H19: =F19 + E19 -> 0.016 | I19: =G19*(F19 - H19) + G20*(F20 - H20) -> -126400 | M19: =IF(D19="Error", 0, VLOOKUP($D$2, __SETTINGS__!$A$2:$W$6, 21, FALSE)) -> 780
E20: 0.01 | F20: 0.005 | G20: 9000000 | H20: =F20 + E20 -> 0.015 | M20: =IF(D20="Error", 0, VLOOKUP($D$2, __SETTINGS__!$A$2:$W$6, 21, FALSE)) -> 780
C21: 8 | D21: ="Вклад у гривнях "&IF(H21>0.145,"Поповнення НЕ передбачено","Поповнення передбачено") -> Вклад у гривнях Поповнення передбачено | E21: -8.67361738e-19 | F21: 0.145 | G21: 0 | H21: =F21 + E21 -> 0.145 | I21: =G21*(H21 - F21)/365*180 -> 0 | M21: =IF(D21="Error", 0, VLOOKUP($D$2, __SETTINGS__!$A$2:$W$6, 21, FALSE)) -> 780
C22: 9 | D22: ="Вклад у доларах США "&IF(H22>0.015,"Поповнення НЕ передбачено","Поповнення передбачено") -> Вклад у доларах США Поповнення передбачено | E22: -8.67361738e-19 | F22: 0.015 | G22: 0 | H22: =F22 + E22 -> 0.015 | I22: =G22*(H22-F22)/365*180*I28 -> 0
C23: 10 | D23: Безготівкові перекази в інші банки за межами України USD/EUR/GBP/CHF/PLN | E23: 0 | F23: 0.007 | G23: 0 | H23: =F23+E23 -> 0.007 | I23: =G23*(F23 - H23) -> 0
C24: 11 | D24: Купівля-продаж іноземної валюти за заявою клієнта | E24: 0 | F24: 0.005 | G24: 0 | H24: =F24+E24 -> 0.005 | I24: =G24*(F24 - H24) -> 0
C25: 12 | D25: Безготівкові операції з конвертації іноземних валют | E25: 0 | F25: 0.005 | G25: 0 | H25: =F25+E25 -> 0.005 | I25: =G25*(F25 - H25) -> 0
C26: 13 | D26: ="Вклад у Євро "&IF(H26>0.015,"Поповнення НЕ передбачено","Поповнення передбачено") -> Вклад у Євро Поповнення передбачено | E26: -8.67361738e-19 | F26: 0.015 | G26: 0 | H26: =F26+E26 -> 0.015 | I26: =G26*(F26 - H26) -> 0
H27: Економія/Витрати | I27: =SUM(I3,I4,I5,I9,I10,I12,I17,I21,I22,I23:I25) -> 0
H28: Курс, долар США | I28: 42.28

Sheet __SETTINGS__ (hidden)
A1: тариф | B1: базова вартість(грн) | C1: Безготівкові перекази в частині списання з поточного рахунку в межах Банку на рахунки інших отримувачів | D1: Безготівкові перекази в частині списання з поточного рахунку в інші банки по території України | E1: Отримання готівкових коштів в банкоматах та відділеннях Банку/ банків України | F1: Отримання готівкових коштів в банкоматах та відділеннях за межами України | G1: Безготівкове поповнення поточного рахунку у системі Банку/ зовнішнє | H1: Оренда ІБС | I1: Щомісячна плата за обслуговування карток в рамках Тарифного плану | J1: Банківська довіреність | K1: Оформлення заповідального розпорядження | L1: Перевірка справжності купюр,перерахування та оброблення готівки | M1: Надання приміщення для здійснення операції у присутності нотаріуса | N1: Безготівкові перекази в частині списання з поточного рахунку в межах Банку на рахунки інших отримувачів _деп | O1: Оренда ІБС | P1: Отримання готівкових коштів в Україні_тариф | Q1: Отримання готівкових коштів в банкоматах та відділеннях за межами України_тариф | R1: Безготівкове поповнення поточного рахунку у системі Банку/ зовнішнє_тарифи | S1: Щомісячна плата за обслуговування карток в рамках Тарифного плану_тарифи | T1: Банківська довіреність _тариф | U1: Оформлення заповідального розпорядження | V1: Перевірка справжності купюр,перерахування та оброблення готівки_тариф | W1: Надання приміщення для здійснення операції у присутності нотаріуса_тариф | X1: Перерахування, сортування та оброблення готівки в національній валюті по замовленню клієнта | Y1: Перерахування, сортування та оброблення готівки в національній валюті по замовленню клієнта | AC1: кількість_днів
A2: Перелік опцій | B2: 3000 | C2: 1 | D2: 1 | E2: 1 | F2: 1 | G2: 1 | H2: 1 | I2: 1 | J2: 1 | K2: 0 | L2: 1 | M2: 0 | N2: 0.005 | O2: 500 | P2: 0.012 | Q2: 0.01 | R2: 0.01 | S2: 100 | T2: 200 | U2: 780 | V2: 0,2% + 30 грн | W2: 500 | X2: 1 | Y2: 1 | AC2: 1
A3: З відкриттям Преміальної картки в ТП «Безмеж» | B3: 2000 | C3: 1 | D3: 1 | E3: 1 | F3: 1 | G3: 1 | H3: 1 | I3: 1 | J3: 1 | K3: 1 | L3: 1 | M3: 1 | N3: 0.005 | O3: 500 | P3: 0.012 | Q3: 0.01 | R3: 0.01 | S3: 100 | T3: 200 | U3: 780 | V3: 0,2% + 30 грн | W3: 500 | X3: 1 | Y3: 1 | AC3: 2
A4: На діючу Преміальну картку | B4: 1500 | C4: 1 | D4: 1 | E4: 1 | F4: 1 | G4: 1 | H4: 1 | I4: 1 | J4: 1 | K4: 1 | L4: 1 | M4: 1 | N4: 0.005 | O4: 500 | P4: 0.012 | Q4: 0.01 | R4: 0.01 | S4: 100 | T4: 200 | U4: 780 | V4: 0,2% + 30 грн | W4: 500 | X4: 1 | Y4: 1 | AC4: 3
A5: В межах ТП «Престиж» | B5: 3500 | C5: 1 | D5: 1 | E5: 1 | F5: 1 | G5: 1 | H5: 1 | I5: 1 | J5: 1 | K5: 1 | L5: 1 | M5: 1 | N5: 0.005 | O5: 500 | P5: 0.012 | Q5: 0.01 | R5: 0.01 | S5: 100 | T5: 200 | U5: 780 | V5: 0,2% + 30 грн | W5: 500 | X5: 1 | Y5: 1 | AC5: 4
A6: В межах ТП «Стартовий» | B6: 4000 | C6: 1 | D6: 1 | E6: 1 | F6: 1 | G6: 1 | H6: 1 | I6: 1 | J6: 1 | K6: 1 | L6: 1 | M6: 1 | N6: 0.005 | O6: 500 | P6: 0.012 | Q6: 0.01 | R6: 0.01 | S6: 100 | T6: 200 | U6: 780 | V6: 0,2% + 30 грн | W6: 500 | X6: 1 | Y6: 1 | AC6: 5
AC7: 6
AC8: 7
AC9: 8
AC10: 9
AC11: 10
AC12: 11
AC13: 12
AC14: 13
AC15: 14
AC16: 15
AC17: 16
AC18: 17
AC19: 18
AC20: 19
AC21: 20
AC22: 21
AC23: 22
AC24: 23
AC25: 24
AC26: 25
AC27: 26
AC28: 27
AC29: 28
AC30: 29
AC31: 30
AC32: 31
AC33: 61
AC34: 62
AC35: 92
AC36: 93
AC37: >93
A63: Картка для власних потреб | B63: ТП «Безмеж» в Гривнях з оформленням основної преміальної картки | C63: 2000
A64: Картка для виплат | B64: ТП «Еліт» в Гривнях з оформленням основної преміальної картки | C64: 3000
A65: Картка моряка/ІТ | B65: ТП «Безмеж» в Доларах США з оформленням основної преміальної картки | C65: 2000
A66: Зарплатна картка | B66: ТП «Еліт» в Доларах США з оформленням основної преміальної картки | C66: 3000
A67: обрати тариф з переліку | B67: ТП «Безмеж» в Євро з оформленням основної преміальної картки | C67: 2000
B68: ТП «Еліт» в Євро з оформленням основної преміальної картки | C68: 3000
B69: Оформлення основної преміальної картки обрати з переліку | C69: 0
